[Event "4NCL Div 2 2024-25"]
[Site "England"]
[Date "2025.02.16"]
[Round "6.7"]
[White "Moore, Gerald"]
[Black "Wilks, Simon"]
[Result "1/2-1/2"]
[Annotator "TA"]
[ECO "E36"]
[WhiteElo "2033"]
[BlackElo "2078"]
[PlyCount "67"]
[EventDate "2024.11.23"]
[EventType "team-tourn"]
[EventCountry "ENG"]
[SourceTitle "playchess.com"]
[Source "ChessBase"]
[SourceQuality "1"]
[TimeControl "40/6000+30:3000+30"]

{[%evp 10,67,33,33,64,0,18,12,16,12,22,11,25,17,15,9,6,12,6,12,16,12,12,0,0,-14,0,-27,0,-57,24,-21,-24,-6,6,-56,-66,-77,-75,-108,31,13,139,18,30,38,412,385,569,578,582,578,491,0,193,0,502,0,162,0]} 1. c4 {[%emt 0:10:04]} Nf6 {[%emt 0:19:15]} 2. Nc3 {[%emt 0:00:08]} e6 {[%emt 0:00:18]} 3. Nf3 {[%emt 0:00:22]} Bb4 {[%emt 0:02:00]} 4. Qc2 {[%emt 0:00:28]} d5 {[%emt 0:07:48]} 5. a3 {[%emt 0:05:49]} Be7 {[%emt 0:04:37]} 6. d4 {[%emt 0:08:33]} Nbd7 {[%emt 0:15:08] E36: Nimzo-Indian: Classical: 4...d5 5 a3.} 7. e3 {[%emt 0:05:31] White is more active.} ({White should play} 7. cxd5 $14 exd5 8. Bf4) 7... c6 {[%emt 0:04:31]} 8. Bd3 {[%emt 0:02:34]} b6 {[%emt 0:07:22] The position is equal.} 9. O-O {[%emt 0:15:04]} Bb7 {[%emt 0:01:58]} 10. b3 {[%emt 0:14:37]} Rc8 {[%emt 0:09:01]} 11. Bb2 {[%emt 0:01:23]} O-O {[%emt 0:06:11]} 12. Qe2 {[%emt 0:20:05]} c5 {[%emt 0:07:57]} 13. Rac1 {[%emt 0:05:41]} cxd4 $146 {[%emt 0:10:10]} ({Predecessor:} 13... dxc4 14. bxc4 Qc7 15. Rfd1 Rfe8 16. d5 exd5 17. cxd5 Nxd5 18. Nxd5 Bxd5 19. Bxh7+ Kxh7 20. Rxd5 Nf6 {½-½ Gulko,B (2550)-Salgado Lopez,I (2459) Cappelle op 24th 2008 (8)}) 14. exd4 {[%emt 0:01:21]} Re8 {[%emt 0:02:30]} 15. Rfd1 {[%emt 0:01:17]} Nf8 {[%emt 0:01:03]} 16. Ne5 {[%emt 0:03:41]} Ng6 {[%emt 0:02:56]} 17. Qe3 {[%emt 0:05:19]} a6 {[%emt 0:00:50]} 18. f4 {[%emt 0:02:11]} Bd6 {[%emt 0:03:12]} 19. g3 {[%emt 0:02:36]} (19. Na4 $11) 19... Qe7 {[%emt 0:00:16]} (19... dxc4 $15 20. Nxc4 (20. bxc4 Bxe5 21. Bxg6 Bxf4 $17) 20... Bb8) 20. cxd5 {[%emt 0:02:39]} Nxd5 {[%emt 0:01:35]} 21. Nxd5 {[%emt 0:00:20]} exd5 {[%emt 0:00:37]} 22. Qf2 {[%emt 0:00:49]} (22. Rxc8 $11 Bxc8 23. Qc1) 22... Bxa3 $15 {[%emt 0:00:27]} 23. Rxc8 {[%emt 0:00:38]} Rxc8 {[%emt 0:00:24]} 24. Re1 {[%emt 0:00:23]} Qd6 {[%emt 0:00:47]} (24... Bxb2 $17 25. Qxb2 (25. Nxg6 Qb4 $17) 25... Qb4) 25. f5 $1 $14 {[%emt 0:00:45]} Nf8 {[%emt 0:00:04]} (25... Nh8 $11) 26. Bxa3 {[%emt 0:00:39]} (26. f6 $1 $16 {[%cal Rf6g7]} Bxb2 27. fxg7) 26... Qxa3 $11 {[%emt 0:00:11]} 27. f6 {[%emt 0:00:11]} g6 {[%emt 0:00:49][%mdl 8192]} (27... Rc1 $14) 28. Qe3 {[%emt 0:00:26]} Qd6 {[%emt 0:00:53]} (28... Qb4 $142 29. Kg2 (29. Ng4 Rc7 $18) 29... Rc7) 29. Ng4 $18 {[%emt 0:00:14] Threatening mate with Nh6+.} Ne6 {[%emt 0:02:10]} 30. Nh6+ {[%emt 0:00:46]} Kf8 {[%emt 0:00:00] [#]} 31. Ng4 $2 {[%emt 0:00:28]} (31. Nxf7 $1 Kxf7 32. Qh6) 31... Kg8 $1 {[%emt 0:00:00]} 32. Nh6+ $2 {[%emt 0:00:12]} (32. Qh6 {[%cal Oe1e6] And now Rxe6! would win.} Qf8 (32... Nxd4 33. Qg7#) 33. Bxg6 Qxh6 (33... hxg6 $2 34. Rxe6 Rd8 35. Qxf8+ Rxf8 36. Re7 $18) 34. Nxh6+ Kf8 35. Bxf7) 32... Kf8 {[%emt 0:00:00] [#]} 33. Ng4 $2 {[%emt 0:00:02]} (33. Nxf7 $1 Kxf7 34. Qh6) 33... Kg8 $1 {[%emt 0:00:00]} 34. Nh6+ $2 {[%emt 0:00:39] Weighted Error Value: White=0.64/Black=0.51  Loses game:     	---       	Black=1      Missed win:     	White=1     	---        Mistake:       	White=7     	Black=4      Inaccurate:     	White=3     	Black=1      OK:         	White=1     	Black=6      Best:        	White=3     	Black=4      Strong:       	White=1     	Black=2} (34. Qh6 $18 Qf8 (34... Nxd4 35. Qg7#) 35. Bxg6 Qxh6 (35... hxg6 $2 {too greedy.} 36. Rxe6 Rd8 37. Qxf8+ Kxf8 38. Rxb6 $18) 36. Nxh6+ Kf8 37. Bxf7) 1/2-1/2

[Event "4NCL Div 2 2024-25"]
[Site "England"]
[Date "2025.02.16"]
[Round "6.8"]
[White "Udovenko, Daniel"]
[Black "Moore, Eoin"]
[Result "1-0"]
[Annotator "TA"]
[ECO "E60"]
[WhiteElo "1941"]
[BlackElo "1835"]
[PlyCount "67"]
[EventDate "2024.11.23"]
[EventType "team-tourn"]
[EventCountry "ENG"]
[SourceTitle "playchess.com"]
[Source "ChessBase"]
[SourceQuality "1"]
[TimeControl "40/6000+30:3000+30"]

{[%evp 9,67,25,36,22,16,37,30,40,38,23,16,0,0,-50,-10,-27,84,80,77,71,82,47,31,-84,0,0,0,16,14,0,103,53,59,50,121,122,135,43,48,43,50,0,0,-43,0,0,472,442,1246,1197,1518,1422,1922,1825,29986,29987,29987,29984,29992,29992]} 1. d4 {[%emt 0:10:03]} Nf6 {[%emt 0:10:12]} 2. c4 {[%emt 0:00:05]} g6 {[%emt 0:00:02]} 3. h4 {[%emt 0:00:03]} Bg7 {[%emt 0:02:02]} 4. Nc3 {[%emt 0:00:09]} d5 {[%emt 0:00:20]} 5. h5 {[%emt 0:00:07]} Nxh5 {[%emt 0:04:32]} 6. cxd5 {[%emt 0:00:08] E60: King's Indian: Unusual lines and Fianchetto Variation without Nc3.} (6. Nxd5 c6 7. Nc3 Bxd4 $17 (7... Qxd4 8. Qxd4 Bxd4 9. Bh6 $17)) 6... e6 {[%emt 0:02:19]} 7. g4 {[%emt 0:02:02]} Nf6 {[%emt 0:00:52]} 8. dxe6 {[%emt 0:00:17] White has an edge.} Bxe6 {[%emt 0:01:17]} 9. e4 {[%emt 0:00:07]} Nxg4 $146 {[%emt 0:06:00]} ({Predecessor:} 9... Qe7 10. g5 Nxe4 11. Nxe4 Bd5 12. f3 Nc6 13. Bg2 Nxd4 14. Ne2 O-O-O 15. Nxd4 Bxe4 16. fxe4 Bxd4 17. Qe2 Qb4+ 18. Kf1 {½-½ Ding,L (2745)-Mamedyarov,S (2733) FIDE World Rapid Team 2024 (9.13)}) 10. Be2 {[%emt 0:13:59]} h5 {[%emt 0:07:41]} 11. d5 {[%emt 0:19:39]} (11. f3 $11) 11... Bd7 $15 {[%emt 0:12:10]} 12. f3 {[%emt 0:06:27]} Nh6 {[%emt 0:10:11]} (12... Ne5 $1 $11) 13. Bf4 {[%emt 0:06:08]} Na6 {[%emt 0:14:16]} 14. Qd2 {[%emt 0:03:18] White sacrificed a pawn White is more active.} Qf6 {[%emt 0:09:50]} 15. Bxa6 {[%emt 0:13:13]} Qxa6 {[%emt 0:04:00]} 16. Bxc7 {[%emt 0:00:52] [#]} (16. Nge2 $14) 16... O-O {[%emt 0:03:15]} (16... f5 $1 $17) 17. Nge2 {[%emt 0:03:37]} b5 {[%emt 0:02:15]} 18. Bf4 {[%emt 0:05:31]} Kh7 {[%emt 0:00:36]} (18... b4 19. Bxh6 bxc3 20. bxc3 $16 (20. Nxc3 Rab8 $11)) 19. Ng3 {[%emt 0:03:39]} Rac8 {[%emt 0:04:40]} (19... Rae8 $11 {keeps the balance.}) 20. Kf2 {[%emt 0:05:44]} (20. d6 $16 {[%cal Og3h5] aiming for Nxh5!.} f5 21. Nd5 fxe4 22. Nxe4) 20... b4 {[%emt 0:05:15]} 21. Nce2 {[%emt 0:01:13][%cal Og3h5] Really sharp!} b3 {[%emt 0:03:38]} 22. axb3 $16 {[%emt 0:00:52] White has strong rooks and is better} Qb6+ {[%emt 0:00:37]} 23. Qe3 {[%emt 0:02:26]} (23. Kg2 $16) 23... Rc2 $1 $14 {[%emt 0:00:39] aiming for ...Bd4.} 24. Qxb6 {[%emt 0:04:11]} (24. Rxa7 $2 Bd4 25. Rxd7 Bxe3+ 26. Bxe3 Qf6 (26... Qxb3 $2 27. Rd6 $19) 27. Bxh6 Kxh6 $19) 24... axb6 {[%emt 0:00:04]} 25. Ra7 {[%emt 0:02:50]} ({White should play} 25. Ke3 $14) 25... Bb5 $11 {[%emt 0:01:02]} 26. Rb7 {[%emt 0:01:11]} (26. Ke3 $5 Rxb2 27. Nd4 $11) 26... Bf6 {[%emt 0:01:17] This pair of bishops is nice.} 27. e5 $36 {[%emt 0:01:03][%cal Be4e5,Be5f6][%mdl 2080] White has good play.} (27. Rxb6 $2 Bd4+ (27... Bxb2 $2 28. Rxb5 f5 29. e5 $18) 28. Be3 Bxb6 29. Bxb6 f5 $19 (29... Rxb2 30. Bd4 $17)) 27... h4 $2 {[%emt 0:00:34][%mdl 8192]} (27... g5 $11 28. Bc1 (28. exf6 $2 {loses.} gxf4 29. Rxh5 fxg3+ 30. Kxg3 Bxe2 $19) 28... Bxe5 29. Bxg5 Bxe2 (29... Bxb2 $2 30. Rxh5 Bd4+ 31. Ke1 $18) (29... Bxg3+ 30. Kxg3 Nf5+ 31. Kf4 $17) 30. Nxe2 Nf5) 28. exf6 {[%emt 0:01:12]} hxg3+ {[%emt 0:00:05] Black is weak on the dark squares} (28... Nf5 $142 29. Rc7 (29. Rxb6 Bxe2 30. Nxf5 Bd3+ 31. Ke3 Bxf5 $18) 29... Rxb2) 29. Kxg3 $18 {[%emt 0:00:25]} g5 {[%emt 0:00:59]} 30. Bxg5 {[%emt 0:01:18]} Kg6 {[%emt 0:00:14]} 31. Bxh6 {[%emt 0:00:39]} (31. Rxh6+ Kxg5 32. Nd4 Ba6 33. Rxb6 Rd2 $18) 31... Rh8 {[%emt 0:00:25]} 32. Nf4+ {[%emt 0:00:06] White mates.} Kxf6 {[%emt 0:02:18] [#]} 33. Bg5+ $1 {[%emt 0:00:07]} Kg7 {[%emt 0:00:29]} (33... Kxg5 34. Rxh8) 34. Ne6+ {[%emt 0:00:25] Weighted Error Value: White=0.24 (precise) /Black=1.00  Loses game:     	---       	Black=1      Mistake:       	White=5     	Black=5      Inaccurate:     	White=2     	Black=1      OK:         	White=7     	Black=8      Best:        	White=2     	Black=1      Strong:       	---       	Black=1} 1-0

[Event "4NCL Div 2 2024-25"]
[Site "England"]
[Date "2025.02.16"]
[Round "6.8"]
[White "Shepherd, Tom"]
[Black "Latypova, Olga L"]
[Result "1-0"]
[Annotator "TA"]
[ECO "D02"]
[WhiteElo "1905"]
[BlackElo "1831"]
[PlyCount "69"]
[EventDate "2024.11.23"]
[EventType "team-tourn"]
[EventCountry "ENG"]
[SourceTitle "playchess.com"]
[Source "ChessBase"]
[SourceQuality "1"]
[TimeControl "40/6000+30:3000+30"]

{[%evp 9,69,24,21,15,33,31,31,39,32,36,44,56,48,53,57,51,68,77,107,94,209,121,271,166,160,160,178,133,248,99,112,103,110,97,89,86,131,127,346,330,452,357,348,345,346,330,356,351,355,346,506,366,516,365,602,580,587,599,633,637,684,687]} 1. d4 {[%emt 0:10:02]} Nf6 {[%emt 0:10:08]} 2. Nf3 {[%emt 0:00:03]} g6 {[%emt 0:00:12]} 3. Nbd2 {[%emt 0:00:05]} d5 {[%emt 0:00:31]} 4. b4 {[%emt 0:00:07]} Bg7 {[%emt 0:01:04]} 5. Bb2 {[%emt 0:00:07]} O-O {[%emt 0:09:42]} 6. e3 {[%emt 0:00:03] D02: 1 d4 d5 2 Nf3 sidelines, including 2...Nf6 3 g3 and 2...Nf6 3 Bf4.} Bf5 {[%emt 0:03:12]} 7. Be2 {[%emt 0:01:13]} c6 {[%emt 0:01:51]} 8. a4 {[%emt 0:01:08] White is slightly better.} Nbd7 {[%emt 0:06:22][%cal Oe7e5]} 9. O-O {[%emt 0:02:51]} Qc7 $146 {[%emt 0:12:18]} ({Predecessor:} 9... Ne4 10. c4 Re8 11. cxd5 cxd5 12. Nxe4 Bxe4 13. Qb3 Rc8 14. Rac1 Nf6 15. Ne5 Bf5 {1-0 So,W (2808)-Vachier Lagrave,M (2796) PRO League Stage rapid 2017 (5)}) 10. c4 {[%emt 0:01:04]} a5 {[%emt 0:05:44]} 11. b5 {[%emt 0:01:04]} dxc4 {[%emt 0:01:30]} 12. Nxc4 {[%emt 0:01:38]} Ne4 {[%emt 0:14:42]} 13. Rc1 {[%emt 0:12:05]} Nd6 {[%emt 0:09:02]} 14. bxc6 {[%emt 0:27:41]} Qxc6 {[%emt 0:10:23] [#]} (14... bxc6 $16 15. Ba3 Rfd8) 15. Ba3 {[%emt 0:00:23]} (15. d5 $1 $18 {[%cal Rd5c6]} Qc5 16. Ba3) 15... Nc8 {[%emt 0:11:43]} (15... Nxc4 $16 16. Bxc4 Qf6) 16. Nxa5 {[%emt 0:06:55]} Qb6 {[%emt 0:01:36]} 17. Nc4 {[%emt 0:01:31]} Qf6 {[%emt 0:02:01]} 18. a5 {[%emt 0:04:27]} b6 {[%emt 0:03:05]} (18... b5 $16 {might work better.}) 19. axb6 {[%emt 0:01:55]} (19. Nfe5 $18) 19... Ncxb6 $16 {[%emt 0:00:20]} 20. Nxb6 {[%emt 0:00:57]} Rxa3 {[%emt 0:00:43]} 21. Nxd7 {[%emt 0:00:15]} Bxd7 {[%emt 0:00:11]} 22. Ne5 $36 {[%emt 0:01:24][%mdl 2048] Keeping Black busy.} Ba4 {[%emt 0:02:28]} 23. Qd2 {[%emt 0:01:16] [#] Black must now prevent Nc4.} Rb8 $2 {[%emt 0:00:53]} (23... Be8 $16 24. Rc5 Ra7) 24. Qa5 $18 {[%emt 0:03:54]} Ra2 {[%emt 0:01:41]} 25. Nd7 {[%emt 0:09:37]} Bxd7 {[%emt 0:00:26]} 26. Qxa2 {[%emt 0:00:04]} Qd6 {[%emt 0:00:59]} 27. Rfd1 {[%emt 0:02:42]} Bf5 {[%emt 0:00:32]} 28. Qa7 {[%emt 0:02:02]} Rb2 {[%emt 0:00:37]} 29. Bf3 {[%emt 0:01:41]} Bf8 {[%emt 0:00:29]} (29... h5 $142 30. Rc7 Ra2) 30. Qc7 {[%emt 0:01:09]} Qb4 {[%emt 0:00:24]} (30... Be6 $142 31. Qxd6 exd6) 31. h3 {[%emt 0:01:35]} Ra2 $2 {[%emt 0:00:33]} (31... Bb1 32. Rc4 Qb3) 32. e4 {[%emt 0:01:25] White is clearly winning.} Bxh3 {[%emt 0:00:35]} 33. gxh3 {[%emt 0:00:17]} Qb2 {[%emt 0:00:14]} 34. Qg3 {[%emt 0:00:24]} Ra3 {[%emt 0:00:45]} 35. Kg2 {[%emt 0:00:47] Weighted Error Value: White=0.35/Black=0.57  Loses game:     	---       	Black=1      Mistake:       	White=2     	Black=6      Inaccurate:     	White=1     	Black=3      OK:         	White=14    	Black=8      Best:        	White=1     	---} 1-0

[Event "4NCL Div 2 2024-25"]
[Site "England"]
[Date "2025.02.16"]
[Round "6.9"]
[White "Wall, Tim P"]
[Black "Gallana, Marco"]
[Result "0-1"]
[Annotator "ChessBase"]
[ECO "D03"]
[WhiteElo "2168"]
[BlackElo "2216"]
[PlyCount "64"]
[EventDate "2024.11.23"]
[EventType "team-tourn"]
[EventCountry "ENG"]
[SourceTitle "playchess.com"]
[Source "ChessBase"]
[SourceQuality "1"]
[TimeControl "40/6000+30:3000+30"]

1. d4 {[%emt 1:41:00]} Nf6 {[%emt 0:14:10]} 2. Nf3 {[%emt 0:00:00]} g6 {[%emt 0:00:15]} 3. Bg5 {[%emt 0:00:00]} d5 {[%emt 0:00:49]} 4. Nbd2 {[%emt 0:00:00]} Bg7 {[%emt 0:00:18]} 5. c3 {[%emt 0:00:00]} O-O {[%emt 0:01:29]} 6. e3 {[%emt 0:00:00]} c5 {[%emt 0:01:04]} 7. Be2 {[%emt 0:00:00]} Nc6 {[%emt 0:00:55]} 8. O-O {[%emt 0:00:00]} b6 {[%emt 0:12:44]} 9. h3 {[%emt 0:00:00]} Bb7 {[%emt 0:03:26]} 10. Qb1 {[%emt 0:00:00]} Nd7 {[%emt 0:04:50]} 11. Rd1 {[%emt 0:00:00]} Qe8 {[%emt 0:05:58]} 12. Bf4 {[%emt 0:00:00]} e5 {[%emt 0:05:54]} 13. dxe5 {[%emt 0:00:00]} Ndxe5 {[%emt 0:00:42]} 14. Nxe5 {[%emt 0:00:00]} Nxe5 {[%emt 0:01:13]} 15. Bxe5 {[%emt 0:00:00]} Qxe5 {[%emt 0:01:02]} 16. Bf3 {[%emt 0:00:00]} Rad8 {[%emt 0:05:13]} 17. Qc2 {[%emt 0:00:00]} Bc8 {[%emt 0:02:46]} 18. Nb3 {[%emt 0:00:00]} Be6 {[%emt 0:09:07]} 19. Qe2 {[%emt 0:00:00]} h5 {[%emt 0:03:50]} 20. Rd2 {[%emt 0:00:00]} Qg5 {[%emt 0:04:42]} 21. Kh1 {[%emt 0:00:00]} Be5 {[%emt 0:04:38]} 22. Rad1 {[%emt 0:00:00]} Bc7 {[%emt 0:01:23]} 23. Qf1 {[%emt 0:00:00]} h4 {[%emt 0:03:50]} 24. Nc1 {[%emt 0:00:00]} Rd7 {[%emt 0:03:38]} 25. Qa6 {[%emt 0:00:42]} Qe5 {[%emt 0:01:41]} 26. Kg1 {[%emt 0:00:16]} Rfd8 {[%emt 0:00:33]} 27. Qa4 {[%emt 0:04:04]} d4 {[%emt 0:02:46]} 28. cxd4 {[%emt 0:01:37]} cxd4 {[%emt 0:00:09]} 29. Rxd4 {[%emt 0:02:30]} Rxd4 {[%emt 0:02:11]} 30. exd4 {[%emt 0:00:36]} Qh2+ {[%emt 0:00:23]} 31. Kf1 {[%emt 0:00:04]} Bd7 {[%emt 0:00:42]} 32. Bc6 {[%emt 0:03:07]} Re8 {[%emt 0:00:25]} 0-1

[Event "4NCL Div 2 2024-25"]
[Site "England"]
[Date "2025.02.16"]
[Round "6.10"]
[White "Mazurkiewicz, Michal"]
[Black "Chan, Sheng Liang Bernard"]
[Result "1-0"]
[Annotator "ChessBase"]
[ECO "A05"]
[WhiteElo "2259"]
[BlackElo "2101"]
[PlyCount "59"]
[EventDate "2024.11.23"]
[EventType "team-tourn"]
[EventCountry "ENG"]
[SourceTitle "playchess.com"]
[Source "ChessBase"]
[SourceQuality "1"]
[TimeControl "40/6000+30:3000+30"]

1. e4 {[%emt 0:21:39]} c5 {[%emt 0:10:12]} 2. Nf3 {[%emt 0:00:04]} d6 {[%emt 0:00:06]} 3. g3 {[%emt 0:00:07]} Nf6 {[%emt 0:00:13]} 4. d3 {[%emt 0:00:03]} g6 {[%emt 0:00:20]} 5. Bg2 {[%emt 0:00:06]} Bg7 {[%emt 0:00:05]} 6. O-O {[%emt 0:00:04]} O-O {[%emt 0:00:09]} 7. c3 {[%emt 0:00:24]} Nc6 {[%emt 0:00:38]} 8. Re1 {[%emt 0:00:21]} e5 {[%emt 0:03:01]} 9. a3 {[%emt 0:00:20]} a5 {[%emt 0:01:48]} 10. a4 {[%emt 0:00:06]} h6 {[%emt 0:08:52]} 11. Na3 {[%emt 0:06:18]} Be6 {[%emt 0:03:45]} 12. Nb5 {[%emt 0:00:25]} d5 {[%emt 0:04:20]} 13. exd5 {[%emt 0:00:08]} Nxd5 {[%emt 0:00:05]} 14. Nd2 {[%emt 0:00:21]} Na7 {[%emt 0:11:56]} 15. Nc4 {[%emt 0:01:01]} Nxb5 {[%emt 0:00:57]} 16. axb5 {[%emt 0:00:05]} f6 {[%emt 0:03:10]} 17. f4 {[%emt 0:00:12]} Nb6 {[%emt 0:19:26]} 18. Bxb7 {[%emt 0:10:25]} Nxc4 {[%emt 0:08:59]} 19. dxc4 {[%emt 0:02:06]} Bxc4 {[%emt 0:03:29]} 20. Qa4 {[%emt 0:13:48]} Be6 {[%emt 0:03:38]} 21. Bxa8 {[%emt 0:00:44]} Qxa8 {[%emt 0:00:02]} 22. Qe4 {[%emt 0:00:12]} Bd5 {[%emt 0:05:37]} 23. Qxg6 {[%emt 0:00:24]} Bh1 {[%emt 0:01:07]} 24. Qc2 {[%emt 0:00:13]} c4 {[%emt 0:01:36]} 25. Be3 {[%emt 0:00:38]} Be4 {[%emt 0:01:21]} 26. Qe2 {[%emt 0:02:07]} Bd3 {[%emt 0:00:46]} 27. Qg2 {[%emt 0:00:07]} e4 {[%emt 0:00:55]} 28. f5 {[%emt 0:00:39]} Rd8 {[%emt 0:02:23]} 29. Qh3 {[%emt 0:01:01]} Kf7 {[%emt 0:01:55]} 30. Qh5+ {[%emt 0:00:49]} 1-0

[Event "4NCL Div 2 2024-25"]
[Site "England"]
[Date "2025.02.16"]
[Round "6.11"]
[White "Sucikova, Svetlana"]
[Black "Pein, Jonathan"]
[Result "1-0"]
[Annotator "ChessBase"]
[ECO "A07"]
[WhiteElo "2169"]
[BlackElo "2249"]
[PlyCount "123"]
[EventDate "2024.11.23"]
[EventType "team-tourn"]
[EventCountry "ENG"]
[SourceTitle "playchess.com"]
[Source "ChessBase"]
[SourceQuality "1"]
[TimeControl "40/6000+30:3000+30"]

1. Nf3 {[%emt 0:16:22]} d5 {[%emt 0:10:06]} 2. g3 {[%emt 0:00:51]} b6 {[%emt 0:00:10]} 3. Bg2 {[%emt 0:00:21]} Bb7 {[%emt 0:00:02]} 4. d4 {[%emt 0:00:42]} e6 {[%emt 0:00:13]} 5. O-O {[%emt 0:04:40]} Nd7 {[%emt 0:00:38]} 6. c4 {[%emt 0:01:11]} dxc4 {[%emt 0:00:02]} 7. Qa4 {[%emt 0:01:03]} a6 {[%emt 0:00:56]} 8. Qxc4 {[%emt 0:00:41]} b5 {[%emt 0:01:23]} 9. Qc2 {[%emt 0:00:38]} c5 {[%emt 0:00:23]} 10. dxc5 {[%emt 0:11:02]} Bxc5 {[%emt 0:00:44]} 11. b4 {[%emt 0:00:06]} Bxb4 {[%emt 0:06:57]} 12. a4 {[%emt 0:01:28]} Ngf6 {[%emt 0:05:37]} 13. Qb2 {[%emt 0:05:35]} Qe7 {[%emt 0:06:17]} 14. Nd4 {[%emt 0:10:10]} Bxg2 {[%emt 0:17:36]} 15. Kxg2 {[%emt 0:05:27]} Qc5 {[%emt 0:05:42]} 16. Be3 {[%emt 0:03:19]} Ng4 {[%emt 0:10:24]} 17. Nc2 {[%emt 0:05:45]} Qd5+ {[%emt 0:19:22]} 18. f3 {[%emt 0:00:38]} Bd6 {[%emt 0:03:42]} 19. Bd4 {[%emt 0:08:20]} Rc8 {[%emt 0:04:46]} 20. Nc3 {[%emt 0:00:58]} Qc4 {[%emt 0:04:33]} 21. fxg4 {[%emt 0:04:23]} e5 {[%emt 0:02:03]} 22. Ne3 {[%emt 0:01:48]} Qc6+ {[%emt 0:01:12]} 23. Ncd5 {[%emt 0:04:15]} exd4 {[%emt 0:01:32]} 24. Qxd4 {[%emt 0:00:56]} Be5 {[%emt 0:05:01]} 25. Qe4 {[%emt 0:00:22]} Qe6 {[%emt 0:00:42]} 26. Rac1 {[%emt 0:06:50]} O-O {[%emt 0:00:13]} 27. Nf5 {[%emt 0:01:08]} Rc5 {[%emt 0:01:57]} 28. Nde7+ {[%emt 0:02:15]} Kh8 {[%emt 0:00:05]} 29. Rfd1 {[%emt 0:00:06]} g6 {[%emt 0:01:10]} 30. Rxc5 {[%emt 0:03:24]} Nxc5 {[%emt 0:00:41]} 31. Qb4 {[%emt 0:00:26]} Bf6 {[%emt 0:01:14]} 32. Qxc5 {[%emt 0:01:39]} Re8 {[%emt 0:00:25]} 33. Qd6 {[%emt 0:05:13]} Bxe7 {[%emt 0:00:40]} 34. Qxe6 {[%emt 0:01:01]} fxe6 {[%emt 0:00:02]} 35. Nxe7 {[%emt 0:00:11]} Rxe7 {[%emt 0:00:03]} 36. axb5 {[%emt 0:00:07]} axb5 {[%emt 0:00:53]} 37. Rd8+ {[%emt 0:00:07]} Kg7 {[%emt 0:00:03]} 38. Rb8 {[%emt 0:00:06]} g5 {[%emt 0:01:14]} 39. Rxb5 {[%emt 0:00:25]} Kg6 {[%emt 0:00:31]} 40. h4 {[%emt 0:00:20]} h6 {[%emt 0:00:44]} 41. Kf3 {[%emt 0:50:38]} Ra7 {[%emt 0:21:00]} 42. Rb4 {[%emt 0:00:00]} Kf6 {[%emt 0:08:51]} 43. Ke4 {[%emt 0:00:00]} Ra3 {[%emt 0:06:25]} 44. e3 {[%emt 0:00:00]} gxh4 {[%emt 0:00:38]} 45. gxh4 {[%emt 0:00:00]} Ra1 {[%emt 0:00:18]} 46. Rb8 {[%emt 0:00:00]} Rg1 {[%emt 0:02:25]} 47. Rf8+ {[%emt 0:00:00]} Kg6 {[%emt 0:04:31]} 48. h5+ {[%emt 0:00:00]} Kg5 {[%emt 0:01:24]} 49. Rg8+ {[%emt 0:00:00]} Kh4 {[%emt 0:00:35]} 50. Ke5 {[%emt 0:00:00]} Rxg4 {[%emt 0:07:49]} 51. Rxg4+ {[%emt 0:00:00]} Kxg4 {[%emt 0:00:03]} 52. Kxe6 {[%emt 0:00:00]} Kxh5 {[%emt 0:00:17]} 53. Kf5 {[%emt 0:00:00]} Kh4 {[%emt 0:00:06]} 54. e4 {[%emt 0:00:00]} Kg3 {[%emt 0:00:18]} 55. e5 {[%emt 0:00:00]} h5 {[%emt 0:00:05]} 56. e6 {[%emt 0:00:00]} h4 {[%emt 0:00:03]} 57. e7 {[%emt 0:00:00]} h3 {[%emt 0:00:07]} 58. e8=Q {[%emt 0:00:00]} Kg2 {[%emt 0:00:26]} 59. Kg4 {[%emt 0:00:00]} h2 {[%emt 0:00:10]} 60. Qe2+ {[%emt 0:00:00]} Kg1 {[%emt 0:00:08]} 61. Kg3 {[%emt 0:00:00]} h1=N+ {[%emt 0:00:08]} 62. Kf3 {[%emt 0:00:00]} 1-0